Cogmind - Beta 13 @@@ ROGUE MODE // 2024.07.15 @ 21:42:28 Player: Venar246 Result: Self-destructed Performance ------------- Evolutions (1) 500 Regions Visited (3) 600 Robots Destroyed (39) 195 Value Destroyed (714) 714 Prototype IDs (1) 20 Alien Tech Used (0) 0 Bonus (25) 25 TOTAL SCORE: 2054 Bonus ------- Follower Combat Kills 25 Cogmind --------- Core Integrity 15/400 Matter 300/300 Energy 100/100 System Corruption 0% Temperature Cool (0) Movement Core (700) Ox13 Location -9/Materials Parts ------- > --- POWER (1) -------- (None) > --- PROPULSION (3) --- (None) > --- UTILITY (3) ------ High-capacity Storage Unit Signal Interpreter Hacking Suite > --- WEAPON (2) ------- (None) > --- INVENTORY (20) --- Light Treads Aluminum Leg Aluminum Leg Aluminum Leg Aluminum Leg Improved Heat Sink Hacking Suite Improved EM Shotgun Improved EM Shotgun Small Laser Beamcaster Peak State ------------ > --- POWER ------------ Light Angular Momentum Engine > --- PROPULSION ------- Aluminum Leg Aluminum Leg Carbon-fiber Leg > --- UTILITY ---------- High-capacity Storage Unit Signal Interpreter > --- WEAPON ----------- Beamcaster Light Assault Rifle > --- INVENTORY -------- Light Treads Aluminum Leg Improved Heat Sink Hacking Suite Light Assault Rifle Light Assault Rifle [Rating: 19] Favorites ----------- Power Light Ion Engine Engine Light Ion Engine Propulsion Aluminum Leg Treads Light Treads Leg Aluminum Leg Utility High-capacity Storage Unit Storage High-capacity Storage Unit Processor Signal Interpreter Hackware Hacking Suite Weapon Light Assault Rifle Energy Gun Beamcaster Ballistic Gun Light Assault Rifle Build | -11 -10 -10 -9 ------- Run | Yrd Mat Min Mat Slots Evolved 2 | . . . 2 Power . | . . . . Propulsion 1 | . . . 1 Utility 1 | . . . 1 Weapon . | . . . . Parts Attached 32 | 6 7 2 17 Power 7 | 1 2 1 3 Engine 7 | 1 2 1 3 Core . | . . . . Reactor . | . . . . Propulsion 12 | 2 2 . 8 Treads 2 | . 2 . . Leg 10 | 2 . . 8 Wheel . | . . . . Hover . | . . . . Flight . | . . . . Utility 5 | 1 3 . 1 Device . | . . . . Storage 3 | 1 2 . . Processor 1 | . 1 . . Hackware 1 | . . . 1 Protection . | . . . . Artifact . | . . . . Weapon 8 | 2 . 1 5 Energy Gun 1 | . . . 1 Energy Cannon . | . . . . Ballistic Gun 7 | 2 . 1 4 Ballistic Cannon . | . . . . Launcher . | . . . . Special Weapon . | . . . . Impact Weapon . | . . . . Slashing Weapon . | . . . . Piercing Weapon . | . . . . Special Melee Weapon . | . . . . Unidentified Prototypes 1 | . . . 1 Parts Lost 16 | . 1 1 14 Power 4 | . 1 1 2 Propulsion 6 | . . . 6 Utility . | . . . . Weapon 6 | . . . 6 Highest Loss Streak 6 | . 1 1 6 To Critical Strikes . | . . . . Average Slot Usage (%) 90 | . 89 87 93 Engine 9 | . 13 2 10 Treads 15 | . 23 28 . Leg 13 | . 4 . 31 Storage 12 | . 14 14 11 Processor 9 | . 4 14 11 Hackware 3 | . . . 7 Ballistic Gun 24 | . 28 28 20 Naked Turns . | . . . . Heaviest Build 55 | 11 46 52 55 Greatest Support 40 | 20 40 40 35 Greatest Overweight (x) 15 | . 1 1 15 Average Overweight (x) . | . . 1 1 Largest Inventory Capacity 20 | 8 20 20 20 Average Capacity 18 | 7 17 20 20 Most Carried 11 | 4 5 11 11 Average Carried 5 | 2 3 5 8 Final Capacity 20 | 8 20 20 20 Final Carried 11 | 4 4 11 11 Class Distribution -------------------- 64% | Mutant 35% | Scavenger-Mutant Dominant Class ---------------- Mutant | -10/Materials Mutant | -10/Mines Scavenger-Mutant | -9/Materials Resources | -11 -10 -10 -9 ----------- Run | Yrd Mat Min Mat Matter Collected 787 | 184 201 151 251 Remotely . | . . . . Salvage Created 1110 | . 288 121 701 Parts 83 | . 22 7 54 Haulers Intercepted 3 | . 1 . 2 Recyclers Shooed 4 | . 2 2 . Parts Field Recycled . | . . . . Retrieved Matter . | . . . . Parts Self-Destructed . | . . . . Prevented . | . . . . Kills | -11 -10 -10 -9 ------- Run | Yrd Mat Min Mat Combat Hostiles Destroyed 27 | . 9 2 16 Guns 27 | . 9 2 16 Classes Destroyed 8 | . 5 1 2 Worker 3 | . 1 . 2 Builder 2 | . . . 2 Hauler 3 | . 1 . 2 Recycler 1 | . . 1 . Operator 3 | . 2 . 1 Swarmer 14 | . 6 1 7 Grunt 10 | . 3 1 6 Sentry 3 | . . . 3 Best Kill Streak 6 | . 6 1 5 Combat Bots Only 5 | . 3 1 5 Max Kills in Single Turn 2 | . 1 1 2 Gunslinging 1 | . . . 1 Exploded . | . . . . Melee . | . . . . Uniques/NPCs Destroyed . | . . . . Combat | -11 -10 -10 -9 -------- Run | Yrd Mat Min Mat Hostile Shots Fired 315 | . 103 28 184 Missed 86 | . 35 7 44 Damage Taken 2326 | . 571 220 1535 Core 566 | . 127 54 385 Absorbed by Shields . | . . . . Core Remaining (%) 63 | 100 . 27 . Volleys Fired 127 | . 36 15 76 Largest 2 | . 2 2 2 Hottest 95 | . 40 40 95 Shots Fired 246 | . 72 30 144 Gun 246 | . 72 30 144 Cannon . | . . . . Launcher . | . . . . Special . | . . . . Kinetic 238 | . 72 30 136 Thermal 8 | . . . 8 Explosive . | . . . . Electromagnetic . | . . . . Robot Hit Streak 16 | . 10 7 16 Robot Miss Streak 8 | . 8 4 3 Penetration Max . | . . . . Secondary Targets 8 | . 3 . 5 Max Gunslinging Chain 1 | . 1 . 1 Shots Hit Robots 154 | . 35 16 103 Core Hits 79 | . 22 10 47 Critical Kills . | . . . . Critical Parts Destroyed 1 | . . . 1 Critical Strikes 1 | . . . 1 Destroy 1 | . . . 1 Melee Attacks . | . . . . Impact . | . . . . Slashing . | . . . . Piercing . | . . . . Sneak Attacks . | . . . . Combat Hostiles . | . . . . Follow-up Attacks . | . . . . Damage Inflicted 1720 | 7 426 231 1056 Guns 1637 | . 426 218 993 Cannons . | . . . . Explosions . | . . . . Melee . | . . . . Ramming 83 | 7 . 13 63 Kinetic 1472 | . 426 218 828 Thermal 165 | . . . 165 Explosive . | . . . . Electromagnetic . | . . . . Impact . | . . . . Slashing . | . . . . Piercing . | . . . . Highest Corruption . | . . . . Average Corruption . | . . . . Corruption Purged . | . . . . Corruption Blocked . | . . . . Overload Shots . | . . . . Overflow Damage . | . . . . Projectiles . | . . . . Explosions . | . . . . Melee . | . . . . Knockbacks 1 | . . . 1 Impact 1 | . . . 1 Kinetic . | . . . . Secondary . | . . . . Self-Inflicted Damage . | . . . . Shots . | . . . . Rammed 3 | . 1 2 . Targets Rammed 13 | 1 1 2 9 Kicked 10 | 1 . . 9 Crushed . | . . . . Highest Temperature 264 | . 6 4 264 Average Temperature 54 | . 6 3 59 Received Heat Transfer 783 | . 36 60 687 Effects 2 | . . . 2 Interference 2 | . . . 2 Siege Activations . | . . . . Robots Corrupted . | . . . . Combat Hostiles . | . . . . Parts Fried . | . . . . Impact Corruptions . | . . . . Robots Melted . | . . . . Combat Hostiles . | . . . . Parts Melted . | . . . . Heat Transferred 296 | . . . 296 Parts Sabotaged . | . . . . Parts Stolen . | . . . . Parts Stripped . | . . . . Power Chain Reactions . | . . . . Alert | -11 -10 -10 -9 ------- Run | Yrd Mat Min Mat Peak Influence 240 | . 207 36 240 Initial 13 | . . . 13 Average 68 | . 83 22 97 Maximum Alert Level 1 | . 1 . 1 Low Security (%) 88 | 100 86 100 82 Level 1 11 | . 14 . 17 Level 2 . | . . . . Level 3 . | . . . . Level 4 . | . . . . Level 5 . | . . . . High Security . | . . . . Max Security . | . . . . Squads Dispatched 6 | . 3 . 3 Investigation 2 | . 1 . 1 Extermination . | . . . . Reinforcement 4 | . 2 . 2 Assault . | . . . . Garrison . | . . . . Intercept . | . . . . Searches Triggered . | . . . . Construction Impeded 1 | . . . 1 Haulers Reinforced . | . . . . Active Scanning Responses . | . . . . Cargo Convoy Interrupts . | . . . . Stealth | -11 -10 -10 -9 --------- Run | Yrd Mat Min Mat Distress Signals 2 | . 1 . 1 Communications Jammed . | . . . . Distress Signals . | . . . . Times Spotted 53 | . 21 5 27 Peak Tracking Total 6 | . 4 3 6 Tactical Retreats . | . . . . Traps | -11 -10 -10 -9 ------- Run | Yrd Mat Min Mat Traps Triggered 2 | . 1 . 1 Indirectly . | . . . . Trap Hack Attempts . | . . . . Triggered . | . . . . Disarmed . | . . . . Reprogrammed . | . . . . Reused . | . . . . Traps Extracted . | . . . . Installed . | . . . . Triggered . | . . . . Machines | -11 -10 -10 -9 ---------- Run | Yrd Mat Min Mat Machines Disabled . | . . . . Max in Single Turn . | . . . . Machines Repaired . | . . . . Machines Dismantled . | . . . . Machines Sabotaged . | . . . . Overloaded Fab Kills . | . . . . Hacking | -11 -10 -10 -9 --------- Run | Yrd Mat Min Mat Machines Accessed 5 | . 1 . 4 Terminals 5 | . 1 . 4 Fabricators . | . . . . Repair Stations . | . . . . Recycling Units . | . . . . Scanalyzers . | . . . . Garrison Access . | . . . . Total Hacks 12 | . 2 . 10 Successful 4 | . 1 . 3 Failed 8 | . 1 . 7 Catastrophic 1 | . 1 . . Database Lockouts . | . . . . Manual 12 | . 2 . 10 Terminals 12 | . 2 . 10 Fabricators . | . . . . Repair Stations . | . . . . Recycling Units . | . . . . Scanalyzers . | . . . . Garrison Access . | . . . . Terminal Hacks 4 | . 1 . 3 Robot Analysis 1 | . . . 1 Transport Status 1 | . . . 1 Hauler Manifests 2 | . 1 . 1 Fabricator Hacks . | . . . . Repair Station Hacks . | . . . . Recycling Unit Hacks . | . . . . Scanalyzer . | . . . . Garrison Access Hacks . | . . . . Unauthorized Hacks . | . . . . Terminals . | . . . . Fabricators . | . . . . Repair Stations . | . . . . Recycling Units . | . . . . Scanalyzers . | . . . . Garrison Access . | . . . . Data Cores Recovered . | . . . . Used . | . . . . Hacking Detections 3 | . . . 3 Full Trace Events . | . . . . Feedback Events . | . . . . Feedback Blocked . | . . . . Robot Schematics Acquired . | . . . . Robots Built . | . . . . Authchips . | . . . . Time . | . . . . Total Robot Build Rating . | . . . . Part Schematics Acquired . | . . . . Parts Built . | . . . . Authchips . | . . . . Time . | . . . . Total Part Build Rating . | . . . . Parts Repaired . | . . . . Time . | . . . . Parts Recycled . | . . . . Recycled Matter . | . . . . Retrieved Matter . | . . . . Retrieved Components . | . . . . Parts Scanalyzed . | . . . . Part Schematics Acquired . | . . . . Parts Damaged . | . . . . Bothacking | -11 -10 -10 -9 ------------ Run | Yrd Mat Min Mat Used RIF Installer . | . . . . Robots Hacked . | . . . . Non-combat . | . . . . Combat . | . . . . Robot Hacks Applied . | . . . . Relay Couplers Released . | . . . . Fabnet Peak Effective % . | . . . . Robots Rewired . | . . . . Allies Hacked . | . . . . Hacks Repelled . | . . . . Allies | -11 -10 -10 -9 -------- Run | Yrd Mat Min Mat Total Allies 1 | . . 1 . Largest Group 1 | . . 1 . Highest-Rated Group 31 | . . 31 . Highest-Rated Ally 31 | . . 31 . Total Orders . | . . . . Ally Attacks 5 | . . 5 . Total Damage 64 | . . 64 . Kills 1 | . . 1 . Allies Corrupted . | . . . . Allies Melted . | . . . . Intel | -11 -10 -10 -9 ------- Run | Yrd Mat Min Mat Robot Analysis Total 1 | . . . 1 Derelict Logs Recovered 1 | . . 1 . Drone Launches . | . . . . Drone Recoveries . | . . . . Exploration | -11 -10 -10 -9 ------------- Run | Yrd Mat Min Mat Turns Passed 2569 | 129 800 678 962 Spaces Moved 1053 | 111 318 257 367 Core 26 | 25 . . 1 Treads 501 | . 244 257 . Legs 526 | 86 74 . 366 Wheels . | . . . . Hover . | . . . . Flight . | . . . . Fastest Speed 50 | 50 120 240 190 Average Speed 201 | 104 212 240 194 Slowest Speed 800 | 120 240 240 800 Overloaded Moves . | . . . . Propulsion Burnouts . | . . . . Robots Hopped . | . . . . Cave-ins Triggered . | . . . . Exploration Rate (%) 35 | 5 52 63 23 Regions Visited 3 Branch Regions 1 Pre-discovered Areas 2 | . . 2 . Known Exits Taken 2 | . 1 1 . Unknown Exits Taken 1 | 1 . . . Scrap Searched 1 | . . 1 . Spaces Dug . | . . . . Terrain Destroyed . | . . . . Melee . | . . . . Projectile . | . . . . AOE . | . . . . Terrain Rammed . | . . . . Walls Destroyed . | . . . . Machines Disabled . | . . . . Actions | -11 -10 -10 -9 --------- Run | Yrd Mat Min Mat Total 1275 | 121 379 288 487 Wait 23 | . 9 7 7 Move 1050 | 110 317 256 367 Hop . | . . . . Pick Up 20 | 4 3 6 7 Fast Attach 15 | 6 3 1 5 Attach 11 | . 2 . 9 Detach 2 | . 2 . . Swap 6 | . 2 1 3 Drop 8 | . 4 . 4 Fire 127 | . 36 15 76 Melee . | . . . . Ram . | . . . . Kick 10 | 1 . . 9 Crush 3 | . 1 2 . Escape Stasis . | . . . . Rewire . | . . . . Trap . | . . . . Miscellaneous . | . . . . Route ------- -11/Scrapyard -10/Materials (discovered 4 exits: *Mat x3 / *Min) -10/Mines -9/Materials History --------- Turn | Location | Event 10 | -11/Scrapyard | Discovered new exit (range 16) 130 | -11/Scrapyard | Entered Materials 208 | -10/Materials | Discovered new exit (range 13) 209 | -10/Materials | Discovered new exit (range 16) 309 | -10/Materials | Build established: Mutant 369 | -10/Materials | Discovered new exit (range 16) 841 | -10/Materials | Discovered new exit (range 6) 924 | -10/Materials | Core integrity fell below 50% 928 | -10/Materials | Identified exit to Mines 930 | -10/Materials | Entered Mines 948 | -10/Mines | Escorted by a lone wolf Derelict 968 | -10/Mines | Learned location of Storage (-8) 1018 | -10/Mines | Learned location of Zion (-7) 1414 | -10/Mines | Discovered new exit (range 13) 1485 | -10/Mines | Identified exit to Materials 1608 | -10/Mines | Entered Materials 1608 | -9/Materials | Evolved 2 slots: Propulsion x1, Utility x1 1990 | -9/Materials | Lost 4 parts (2n2w) 2159 | -9/Materials | Build established: Scavenger-Mutant 2421 | -9/Materials | Core integrity fell below 50% 2562 | -9/Materials | Core integrity fell below 20% 2570 | -9/Materials | Self-destructed Last Messages --------------- 02547_ G-34 Mercenary destroyed. 02548_ K-01 Serf collects debris. 02548_ K-01 Serf cleans the Integration Channel. 02550_ K-01 Serf collects debris. 02550_ R-06 Scavenger collects Lgt. Ion Engine. 02552_ K-01 Serf collects debris. 02553_ R-06 Scavenger collects Ion Engine. 02555_ K-01 Serf collects debris. 02556_ Aluminum Leg destroyed. 02556_ R-06 Scavenger collects Structural Scanner. 02557_ K-01 Serf collects debris. 02559_ Aluminum Leg destroyed. 02560_ K-01 Serf collects debris. 02560_ K-01 Serf cleans the Integration Channel. 02560_ R-06 Scavenger collects Terrain Scan Processor. 02561_ K-01 Serf collects debris. 02562_ Imp. Ion Engine destroyed. 02567_ K-01 Serf collects debris. Map ----- +----------------------------------------------------+ | ?????????????????????????????????????????????????? | | ?????????????????????????????????????????????????? | | ?????????????????????????????????????????????????? | | ?????????????????????????????????????????????????? | | ?????????????????????????????????????????????????? | | ?????????????????????????????????????????????????? | | ?????????????????????????????????????????????????? | | ?????????????????????????????????????????????????? | | ?????????????????????????????????????????????????? | | ?????????????????????????????????????????????????? | | ?????????????????????????????????????????????????? | | ???????????? ??????????????????????????????????? | | ?????????? ??????????????????????????????????? | | ????????? ??????????????? ??????????????????? | | ????????? ??????????????# ??????????????????? | | ????#???? ??????????????# ??????????????????? | | ????# ??? ????????####### #?????????????????? | | ????# """ ????????# # ###???????????????? | | ????# """ #???????# """ # #?##????????????? | | ????# """ #???????# """[+ # #????????????? | | ????# #???????# """%# # #????????###### | | ????# #???????# =*# ?????????# | | ????# #???????# =# #??????????# | | ????# ! #???????# *%=%# #??????????# | | ????# ###########+### ########???# ## | | ????# [ * g @% #???# # | | ????# !%% % !g=g% #???# # | | """ """=% """*""" #???# + | | ?????? """""""""k """"""""" u #???# # | | ??????? """""%! g""""" w "T" #???# ## | | ????????? """ #??## ## | | ????????? k % #### # | | ???????? t % * # | | ?????? ###########################% % T # | | ????? ??????????????????????????# % # | | ?????? ????????????????????????????### #### # | | ??????????????????????????????????????#%#??####### | | ??????????????????????????????????????#%#????????? | | ??????????????????????????????????????#=#?????#### | | ??????????????????????????????????????# #?????# | | ??????????????????????????????????????# #?????# | | ??????????????????????????????????????#*#?????# " | | ??????????????????????????????????????# #?????# T | | ??????????????????????????????????????#%#?????# " | | ??????????????????????????????????????#*#?????# | | ??????????????????????????????????????#*#????##### | | ??????????????????????????????????????#*#????# | | ??????????????????????????????????????#!####?# | | ??????????????????????????????????????# #?# | | ??????????????????????????????????????# #?# | +----------------------------------------------------+ Best States ------------- Heat Dissipation 28 Energy Generation 18 Energy Capacity 280 Matter Stores 300 Matter Capacity 300 Sight Range 16 Terrain Scan Density 10 Evasion (%) 55 Recoil Reduction 2 Offensive Hacking 10 Item Schematics ----------------- None Robot Schematics ------------------ None Fabricated ------------ Nothing Alien Tech Used ----------------- None Achievements -------------- None Challenges ------------ None Game ------ Seed DroneHackingTendrils Manual? 0 Play Time 00:12:29 Cumulative 18.8 hours Start 2024.07.15 @ 21:08:53 End 2024.07.15 @ 21:42:28 Sessions 3 Manual Loads 0 Difficulty Rogue Special Mode None Game No. 34 Rogue 34 Adventurer 0 Explorer 0 Win Type - Total 0 Types 0/0/0/0/0/0/0/0/0 Lore% 23 Gallery% 28 Achievement% 22 Wizard Run 0 Options --------- Layout 1 ASCII 0 Keyboard 0 Movement Arrows Keybinds 0 Fullscreen 1 Font 32/SmallcapsGlow Map View 50x35 Zoom Use 0% Tactical HUD 1 Map Filters NONE Filters NONE Steam 1 RUN: d76ea620-737b-49de-a8b1-0ebb58a35a84